bitfinex-derivatives/quotes_BTCF0:USTF0_20210102
["timestamp","ask_amount","ask_price","bid_price","bid_amount"]
[1609547889553,0.18043158,29131.0,29130.0,0.00035323]
[1609547889753,0.18043158,29131.0,29128.0,0.03294382]
[1609547893055,0.18043158,29131.0,29128.0,0.00035323]
[1609547893255,0.18043158,29131.0,29124.0,1.0]
[1609547893256,0.18043158,29131.0,29130.0,0.18043158]
[1609547893855,0.18043158,29131.0,29130.0,0.00035323]
[1609547894257,0.18043158,29131.0,29125.0,0.03294421]
[1609547894660,0.18043158,29131.0,29130.0,0.00035325]
[1609547894858,0.18043158,29131.0,29125.0,0.03259098]
[1609547894859,0.18043158,29131.0,29126.0,0.00035325]
[1609547895062,0.18043158,29131.0,29130.0,0.00035325]
[1609547895460,0.18043158,29131.0,29127.0,0.00035325]
[1609547895662,0.18043158,29131.0,29130.0,0.00035325]
[1609547895859,0.18043158,29131.0,29127.0,0.00035325]
[1609547896060,0.18043158,29131.0,29130.0,0.00035325]
[1609547896361,0.18043158,29131.0,29127.0,0.03294605]
[1609547896762,0.18043158,29131.0,29130.0,0.00035325]
[1609547896963,0.18043158,29131.0,29128.0,0.00035325]
[1609547897163,0.18043158,29131.0,29130.0,0.00035325]
[1609547897363,0.18043158,29131.0,29129.0,0.00035325]
[1609547897663,0.18043158,29131.0,29127.0,0.03294605]
[1609547897963,0.18043158,29131.0,29130.0,0.00035325]
[1609547898164,0.18043158,29131.0,29128.0,0.00035325]
[1609547898464,0.18043158,29131.0,29127.0,0.03294605]
[1609547898765,0.18043158,29131.0,29129.0,0.00035325]
[1609547898965,0.18043158,29131.0,29128.0,0.00035325]
[1609547899265,0.18043158,29131.0,29127.0,0.03294605]
[1609547899465,0.18043158,29131.0,29129.0,0.00035325]
[1609547899767,0.18043158,29131.0,29127.0,0.00035325]
[1609547900167,0.18043158,29131.0,29130.0,0.00035325]
[1609547900368,0.18043158,29131.0,29127.0,0.03294588]
[1609547900567,0.18043158,29131.0,29130.0,0.00035325]
[1609547900967,0.18043158,29131.0,29128.0,0.00035325]
[1609547901168,0.18043158,29131.0,29130.0,0.00035325]
[1609547901367,0.18043158,29131.0,29129.0,0.00035325]
[1609547901668,0.18043158,29131.0,29130.0,0.00035325]
[1609547902167,0.18043158,29131.0,29127.0,0.03294585]
[1609547902468,0.18043158,29131.0,29130.0,0.00035325]
[1609547902671,0.18043158,29131.0,29128.0,0.00035325]
[1609547903069,0.18043158,29131.0,29130.0,0.00035325]
[1609547903269,0.18043158,29131.0,29129.0,0.00035325]
[1609547903470,0.18043158,29131.0,29130.0,0.00035325]
[1609547903970,0.18043158,29131.0,29127.0,0.03294622]
[1609547904271,0.18043158,29131.0,29127.0,0.00035325]
[1609547904469,0.18043158,29131.0,29128.0,0.00035325]
[1609547904771,0.18043158,29131.0,29127.0,0.00035325]
[1609547905173,4.69692541,29132.0,29129.0,0.00035325]
[1609547905372,4.69692541,29132.0,29127.0,0.03294627]
[1609547905573,4.70754089,29132.0,29130.0,0.00035325]
[1609547905873,4.70754089,29132.0,29128.0,0.00035325]
[1609547906073,4.70754089,29132.0,29131.0,0.00035325]
[1609547906374,4.70795868,29132.0,29127.0,0.03294627]
[1609547906575,4.6973432,29132.0,29127.0,0.03294627]
[1609547906774,4.6973432,29132.0,29131.0,0.00035325]
[1609547906975,4.69692541,29132.0,29128.0,0.00035325]
[1609547907174,4.6973432,29132.0,29131.0,0.00035325]
[1609547907375,4.69692541,29132.0,29129.0,0.00035325]
[1609547907676,4.69692541,29132.0,29127.0,0.03294627]
[1609547907975,4.70754523,29132.0,29130.0,0.00035325]
[1609547908175,4.70754523,29132.0,29128.0,0.00035325]
[1609547908474,4.70754523,29132.0,29127.0,0.03294627]
[1609547908675,4.70754523,29132.0,29129.0,0.00035325]
[1609547909074,4.70754523,29132.0,29127.0,0.03259302]
[1609547909075,4.70754523,29132.0,29127.0,0.03294627]
[1609547909276,0.18043158,29128.0,29127.0,0.03259302]
[1609547909475,0.32737158,29128.0,29127.0,0.03259302]
[1609547909776,0.32737158,29128.0,29127.0,0.03294627]
[1609547913282,0.32737158,29128.0,29127.0,0.83654627]
[1609547914281,0.32737158,29128.0,29127.0,0.83619302]
[1609547914481,0.32737158,29128.0,29127.0,0.83654612]
[1609547914783,0.32737158,29128.0,29127.0,0.83689922]
[1609547914981,0.32737158,29128.0,29127.0,1.83689922]
[1609547915283,0.14694,29128.0,29127.0,1.83689922]
[1609547915684,0.18480674,29131.0,29127.0,1.83689922]
[1609547915886,0.18480674,29131.0,29127.0,1.03329922]
[1609547916085,0.18043158,29131.0,29128.0,0.03288696]
[1609547916485,5.2917,29129.0,29128.0,0.03288696]
[1609547916686,5.43407,29129.0,29128.0,0.03288696]
[1609547916886,5.43407,29129.0,29128.0,1.03288696]
[1609547918185,0.14237,29129.0,29128.0,1.03288696]
[1609547918888,0.14237,29129.0,29128.0,0.03288696]
[1609547919287,0.14237,29129.0,29128.0,0.0003531]
[1609547919487,0.14237,29129.0,29128.0,0.03288837]
[1609547919889,0.14237,29129.0,29128.0,0.0003531]
[1609547920089,0.14237,29129.0,29128.0,0.03288839]
[1609547920290,5.53037,29129.0,29128.0,0.0003531]
[1609547920491,5.53037,29129.0,29128.0,0.03288836]
[1609547920791,5.53037,29129.0,29128.0,0.0003531]
[1609547920992,0.14237,29129.0,29128.0,0.0003531]
[1609547921190,0.14237,29129.0,29128.0,0.03288803]
[1609547921391,0.14237,29129.0,29128.0,0.0003531]
[1609547922191,0.15089,29129.0,29128.0,0.0003531]
[1609547922391,0.15089,29129.0,29127.0,0.03324306]
[1609547922592,4.1882,29128.0,29127.0,0.03324306]
[1609547922792,4.1882,29128.0,29127.0,0.03288996]
[1609547922993,4.1882,29128.0,29127.0,0.03324307]
[1609547923393,4.36863158,29128.0,29127.0,0.03324307]
[1609547924293,4.36863158,29128.0,29127.0,0.03288997]
[1609547927600,4.36863158,29128.0,29127.0,0.03253686]
[1609547927900,4.36863158,29128.0,29127.0,0.03288997]
[1609547931307,4.36654509,29128.0,29127.0,0.03288997]
[1609547945831,0.18043158,29128.0,29127.0,0.03288997]
[1609547959053,0.18043158,29128.0,29127.0,1.03288997]
[1609547960957,0.18043158,29128.0,29127.0,0.03288997]
[1609547962456,0.87533158,29128.0,29127.0,0.03288997]
[1609547966964,0.87533158,29128.0,29127.0,1.03288997]
[1609547968870,0.87324509,29128.0,29127.0,1.03288997]
[1609547974972,0.87324509,29128.0,29127.0,0.03288997]
[1609547976976,0.87324509,29128.0,29127.0,1.03288997]
[1609547977479,0.17834509,29128.0,29127.0,1.03288997]
[1609547977877,0.15089,29129.0,29127.0,6.45898997]
[1609547978078,0.18043158,29131.0,29127.0,6.45898997]
[1609547978278,0.18043158,29131.0,29128.0,0.03283922]
[1609547978878,0.01573501,29132.0,29128.0,0.03283922]
[1609547979080,0.01573501,29132.0,29130.0,1.0]
[1609547979279,0.01573501,29132.0,29131.0,1.0]
[1609547979479,0.01573501,29132.0,29131.0,6.11973198]
[1609547979879,0.01573501,29132.0,29131.0,6.30016356]
[1609547981084,0.01573501,29132.0,29131.0,7.30016356]
[1609547981285,0.01573501,29132.0,29131.0,6.30016356]
[1609547985190,0.01135555,29132.0,29131.0,8.0898432]
[1609547987993,0.01135555,29132.0,29131.0,6.30016356]
[1609547990996,0.01135555,29132.0,29131.0,5.30016356]
[1609547992898,0.01135555,29132.0,29131.0,6.30016356]
[1609547996005,0.01135555,29132.0,29131.0,1.21326356]
[1609547996203,0.01135555,29132.0,29131.0,1.18078451]
[1609547997206,0.01135555,29132.0,29131.0,1.95448451]
[1609547997908,0.19178713,29132.0,29131.0,1.95448451]
[1609547998907,0.19178713,29132.0,29131.0,0.95448451]
[1609547999308,0.19178713,29132.0,29131.0,0.18078451]
[1609548000407,0.18970087,29132.0,29131.0,0.18078451]
[1609548001906,0.00926929,29132.0,29131.0,0.18078451]
[1609548002308,0.00926929,29132.0,29131.0,4.10178451]
[1609548004210,0.00926929,29132.0,29131.0,4.13425841]
[1609548004912,0.00926929,29132.0,29131.0,5.13425841]
[1609548008919,0.00926929,29132.0,29131.0,4.13425841]
[1609548012223,0.00718331,29132.0,29131.0,4.13425841]
[1609548014928,0.00718331,29132.0,29131.0,5.13425841]
[1609548022741,0.11088331,29132.0,29131.0,5.13425841]
[1609548022943,0.00718331,29132.0,29131.0,5.13425841]
[1609548026854,0.00509733,29132.0,29131.0,5.13425841]
[1609548032561,0.00509733,29132.0,29131.0,5.20011308]
[1609548045374,0.00301137,29132.0,29131.0,5.20011308]
[1609548046075,0.00301137,29132.0,29131.0,1.27911308]
[1609548046275,0.00301137,29132.0,29131.0,1.21325841]
[1609548046477,0.00301137,29132.0,29131.0,3.01541593]
[1609548046675,0.18344295,29132.0,29131.0,3.01541593]
[1609548046976,0.18344295,29132.0,29131.0,2.01541593]
[1609548047975,0.18344295,29132.0,29131.0,7.20961593]
[1609548048375,0.18344295,29132.0,29131.0,7.17714203]
[1609548048878,0.18344295,29132.0,29131.0,5.40756937]
[1609548049778,0.18344295,29132.0,29131.0,5.43756937]
[1609548051083,0.18344295,29132.0,29131.0,6.43756937]
[1609548051284,0.00301137,29132.0,29131.0,6.43756937]
[1609548053291,0.00301137,29132.0,29131.0,8.23339531]
[1609548063000,0.00301137,29132.0,29131.0,7.23339531]
[1609548065005,0.00301137,29132.0,29131.0,8.23339531]
[1609548067306,0.00092543,29132.0,29131.0,8.23339531]
[1609548075017,0.00092543,29132.0,29131.0,7.23339531]
[1609548080325,0.00092543,29132.0,29131.0,7.29924779]
[1609548080828,0.14265949,29136.0,29131.0,7.29924779]
[1609548081227,0.18043158,29139.0,29135.0,0.18043158]
[1609548081426,0.18043158,29139.0,29138.0,0.7915]
[1609548081927,0.18043158,29139.0,29138.0,0.82443612]
[1609548083227,0.18043158,29139.0,29138.0,1.0048677]
[1609548086635,0.32461158,29139.0,29138.0,1.0048677]
[1609548096150,0.32461158,29139.0,29138.0,0.2133677]
[1609548096151,1.32461158,29139.0,29138.0,0.2133677]
[1609548096351,5.23402922,29139.0,29138.0,0.00035314]
[1609548096651,5.23402922,29139.0,29133.0,0.0329327]
[1609548096850,5.23402922,29139.0,29138.0,0.00035314]
[1609548097050,6.23402922,29139.0,29138.0,0.00035314]
[1609548097251,6.23402922,29139.0,29133.0,0.0329327]
[1609548097454,6.23402922,29139.0,29138.0,0.00035314]
[1609548097652,0.00041769,29138.0,29134.0,0.00035316]
[1609548097853,0.00041769,29138.0,29135.0,5.084]
[1609548098254,0.00041769,29138.0,29136.0,0.00035316]
[1609548100961,1.03166883,29137.0,29136.0,0.00035316]
[1609548101159,2.03166883,29137.0,29136.0,0.00035316]
[1609548101359,2.03208655,29137.0,29136.0,0.00035316]
[1609548102359,1.03208655,29137.0,29136.0,0.00035316]
[1609548102762,1.03166883,29137.0,29136.0,0.00035316]
[1609548102961,0.03166883,29137.0,29136.0,0.00035316]
[1609548103663,0.01499796,29137.0,29136.0,0.00035316]
[1609548106765,0.00437223,29137.0,29136.0,0.00035316]
[1609548107167,0.00437223,29137.0,29136.0,5.1272]
[1609548107366,0.00437223,29137.0,29136.0,5.30763158]
[1609548107565,0.00437223,29137.0,29136.0,5.30798476]
[1609548110167,0.00437223,29137.0,29136.0,0.18078476]
[1609548110368,0.32461158,29139.0,29136.0,0.18078476]
[1609548110969,0.32461158,29139.0,29137.0,0.00035316]
[1609548112671,0.00437125,29138.0,29137.0,0.00035316]
[1609548113371,0.00437125,29138.0,29137.0,5.36645316]
[1609548114973,1.00437125,29138.0,29137.0,5.36645316]
[1609548116979,0.00437125,29138.0,29137.0,5.36645316]
[1609548123990,0.33959789,29139.0,29137.0,5.36645316]
[1609548124492,0.33959789,29139.0,29138.0,0.00035313]
[1609548125895,0.15916631,29139.0,29138.0,0.00035313]
[1609548126094,0.15916631,29139.0,29138.0,5.22255313]
[1609548126295,0.14418,29139.0,29138.0,5.2222]
[1609548126695,0.01498224,29143.0,29138.0,5.25513613]
[1609548127099,0.00436947,29146.0,29139.0,0.0329346]
[1609548127698,0.00436947,29146.0,29145.0,0.18043158]
[1609548127898,0.00436947,29146.0,29145.0,0.82113158]
[1609548128100,0.01498094,29147.0,29145.0,0.82113158]
[1609548128301,0.00041759,29146.0,29145.0,0.18078467]
[1609548128500,0.01498094,29147.0,29146.0,0.00035306]
[1609548128701,0.01498094,29147.0,29145.0,4.41708464]
[1609548128900,0.01497683,29151.0,29146.0,0.00035306]
[1609548129101,0.01497683,29151.0,29147.0,1.0]
[1609548129302,0.10644755,29150.0,29147.0,1.0]
[1609548129502,0.10644755,29150.0,29148.0,0.00035306]
[1609548129703,0.10644755,29150.0,29149.0,0.18043158]
[1609548129904,0.10603,29150.0,29149.0,0.88163158]
[1609548130105,0.10644755,29150.0,29149.0,0.88198464]
[1609548130505,0.10603,29150.0,29149.0,0.88198464]
[1609548131406,0.10644755,29150.0,29149.0,0.88198464]
[1609548131608,0.10603,29150.0,29149.0,0.88198464]
[1609548134313,0.00436408,29152.0,29149.0,0.88198464]
[1609548134714,0.00436408,29152.0,29150.0,0.00035304]
[1609548136017,0.45789379,29153.0,29150.0,0.00035304]
[1609548136516,0.45789379,29153.0,29152.0,4.8129]
[1609548136716,0.18479379,29153.0,29152.0,4.8129]
[1609548136917,0.18521134,29153.0,29152.0,4.81325304]
[1609548137118,0.18479379,29153.0,29152.0,4.81325304]
[1609548137818,0.18479379,29153.0,29152.0,4.99368462]
[1609548138219,0.18479379,29153.0,29152.0,4.99333158]
[1609548139022,0.18043158,29153.0,29152.0,4.99333158]
[1609548139419,0.01495237,29154.0,29152.0,4.99333158]
[1609548139620,0.01495237,29154.0,29152.0,4.99368462]
[1609548139821,0.01495237,29154.0,29152.0,4.99333158]
[1609548140019,0.01495237,29154.0,29153.0,0.00035302]
[1609548141523,0.00435843,29154.0,29153.0,0.00035302]
[1609548143924,0.18479001,29154.0,29153.0,0.00035302]
[1609548144326,0.18479001,29154.0,29153.0,4.73065302]
[1609548146230,0.29126001,29154.0,29153.0,4.73065302]
[1609548146431,0.28690158,29154.0,29153.0,4.73065302]
[1609548151135,0.28690158,29154.0,29153.0,4.76065302]
[1609548151334,0.2873191,29154.0,29153.0,4.76065302]
[1609548170855,0.10688752,29154.0,29153.0,4.76065302]
[1609548171055,0.10688752,29154.0,29153.0,5.76065302]
[1609548172057,0.10647,29154.0,29153.0,5.76065302]
[1609548172258,0.0043522,29159.0,29153.0,5.76065302]
[1609548172659,0.00041747,29158.0,29154.0,0.00035413]
[1609548172857,0.1679,29158.0,29154.0,0.00035413]
[1609548173157,0.1679,29158.0,29156.0,1.0]
[1609548173357,0.1679,29158.0,29157.0,0.5666]
[1609548173760,0.1679,29158.0,29157.0,0.56695413]
[1609548174059,0.1679,29158.0,29157.0,0.74738571]
[1609548178067,0.18043158,29161.0,29157.0,0.74738571]
[1609548178265,0.18043158,29161.0,29160.0,0.18043158]
[1609548178466,0.18043158,29161.0,29160.0,0.76803158]
[1609548178669,0.18084903,29161.0,29160.0,0.76838569]
[1609548182071,0.18043158,29161.0,29160.0,0.76838569]
[1609548183975,0.34530158,29161.0,29160.0,0.76838569]
[1609548186178,0.16487,29161.0,29160.0,0.76838569]
[1609548189285,0.18043158,29164.0,29160.0,0.76838569]
[1609548189686,0.18043158,29164.0,29161.0,0.00035408]
[1609548190487,0.18043158,29164.0,29163.0,0.18043158]
[1609548190888,0.18043158,29164.0,29163.0,0.86523158]
[1609548191088,0.18084899,29164.0,29163.0,0.86558566]
[1609548194093,0.18084899,29164.0,29163.0,0.89558566]
[1609548195692,0.31423899,29164.0,29163.0,0.89558566]
[1609548196093,0.13380741,29164.0,29163.0,0.89558566]
[1609548197797,0.13380741,29164.0,29163.0,0.21078566]
[1609548198600,0.57674368,29167.0,29165.0,4.7206]
[1609548199202,0.0004174,29166.0,29165.0,4.7206]
[1609548199600,0.1464674,29166.0,29165.0,4.7206]
[1609548199900,0.1464674,29166.0,29165.0,4.72095409]
[1609548201102,0.14605,29166.0,29165.0,4.72095409]
[1609548201903,0.14605,29166.0,29165.0,5.72095409]
[1609548202303,0.14605,29166.0,29165.0,4.72095409]
[1609548204105,0.14605,29166.0,29165.0,4.72095407]
[1609548204607,0.74741845,29172.0,29165.0,4.72095407]
[1609548204805,0.74741845,29172.0,29171.0,0.18043158]
[1609548205005,0.74741845,29172.0,29171.0,1.84433158]
[1609548205206,0.7478358,29172.0,29171.0,1.84468565]
[1609548205408,0.00041735,29172.0,29171.0,1.84468565]
[1609548205707,0.00041735,29174.0,29171.0,1.18078565]
[1609548206107,0.00041735,29172.0,29171.0,1.18078565]
[1609548206307,0.00041735,29173.0,29171.0,1.18043158]
[1609548206507,0.00041735,29172.0,29171.0,1.18078566]
[1609548206708,0.00041735,29172.0,29171.0,1.18043158]
[1609548207110,0.00041735,29175.0,29171.0,0.18078567]
[1609548207308,0.00041735,29172.0,29171.0,0.18078567]
[1609548207508,0.00041735,29174.0,29171.0,0.18043158]
[1609548207809,0.00041735,29175.0,29171.0,0.18043158]
[1609548208210,0.00041735,29173.0,29171.0,0.18043158]
[1609548208409,0.00041735,29174.0,29171.0,0.18043158]
[1609548208609,0.74677762,29177.0,29171.0,0.18043158]
[1609548208809,0.74677762,29177.0,29176.0,0.18043158]
[1609548209010,0.74677762,29177.0,29176.0,1.18043158]
[1609548209210,0.74719496,29177.0,29176.0,1.19043158]
[1609548209911,0.74677762,29177.0,29176.0,1.19043158]
[1609548210312,0.74719496,29177.0,29176.0,1.19043158]
[1609548210513,0.74677762,29177.0,29176.0,1.19043158]
[1609548211015,0.73677762,29177.0,29176.0,0.19043158]
[1609548213015,0.73677762,29177.0,29176.0,1.19043158]
[1609548214113,0.85369762,29177.0,29176.0,1.19043158]
[1609548214414,0.85369762,29177.0,29176.0,1.19078619]
[1609548214814,0.85369762,29177.0,29176.0,1.22078619]
[1609548215013,0.85369762,29177.0,29176.0,0.22078619]
[1609548215617,0.11692,29177.0,29176.0,0.22078619]
[1609548216515,0.11692,29177.0,29176.0,0.22043158]
[1609548217216,0.11692,29177.0,29176.0,1.22043158]
[1609548219216,0.18043158,29182.0,29176.0,1.22043158]
[1609548220120,0.91107964,29187.0,29176.0,1.22043158]
[1609548220520,0.00041727,29186.0,29176.0,1.22043158]
[1609548220723,0.00041727,29186.0,29185.0,0.18043158]
[1609548222724,0.00041727,29186.0,29185.0,5.14183158]
[1609548227531,0.15908727,29186.0,29185.0,5.14183158]
[1609548227831,0.15867,29186.0,29185.0,5.14183158]
[1609548228030,0.1590872,29186.0,29185.0,5.14183158]
[1609548228332,0.15867,29186.0,29185.0,5.14183158]
[1609548229633,0.15908721,29186.0,29185.0,5.14183158]
[1609548230334,0.26208721,29186.0,29185.0,5.14183158]
[1609548231639,0.15908721,29186.0,29185.0,5.14183158]
[1609548232038,0.15867,29186.0,29185.0,5.14183158]
[1609548232538,0.103,29186.0,29185.0,5.14183158]
[1609548232739,0.22881,29186.0,29185.0,5.14183158]
[1609548233342,0.12581,29186.0,29185.0,5.14183158]
[1609548233543,0.12581,29186.0,29185.0,5.14218601]
[1609548234341,0.22801,29186.0,29185.0,5.14218601]
[1609548234741,0.22801,29186.0,29185.0,5.14183158]
[1609548234941,0.12581,29186.0,29185.0,5.14183158]
[1609548235143,0.12581,29186.0,29185.0,6.14183158]
[1609548235543,0.12581,29186.0,29185.0,6.17183158]
[1609548235944,0.22791,29186.0,29185.0,6.17183158]
[1609548236447,0.12581,29186.0,29185.0,6.17183158]
[1609548236846,0.12581,29186.0,29185.0,6.17218599]
[1609548237046,0.12581,29186.0,29185.0,5.17218599]
[1609548237446,0.22991,29186.0,29185.0,5.17218599]
[1609548238148,0.12581,29186.0,29185.0,5.17218599]
[1609548238548,0.91029191,29192.0,29185.0,5.17218599]
[1609548238849,0.91029191,29192.0,29191.0,0.18043158]
[1609548239448,0.91070898,29192.0,29191.0,0.18043158]
[1609548240651,0.00041707,29192.0,29191.0,0.18043158]
[1609548244357,0.00041709,29194.0,29191.0,0.18043158]
[1609548244756,0.00041709,29192.0,29191.0,0.18043158]
[1609548244957,0.30316158,29192.0,29191.0,0.18043158]
[1609548245157,1.30357867,29192.0,29191.0,0.18043158]
[1609548247062,0.30357867,29192.0,29191.0,0.18043158]
[1609548248861,0.30357867,29192.0,29188.0,0.18043158]
[1609548249061,1.30357867,29192.0,29188.0,0.18043158]
[1609548249361,0.00041709,29191.0,29189.0,0.00035441]
[1609548252365,0.72991709,29191.0,29186.0,0.00035439]
[1609548252564,0.72991709,29191.0,29190.0,0.00035442]
[1609548252765,0.7295,29191.0,29187.0,0.00035442]
[1609548252967,0.18043158,29188.0,29187.0,0.00035442]
[1609548253167,1.92443158,29188.0,29186.0,0.00035442]
[1609548253367,1.18084872,29188.0,29187.0,0.00035445]
[1609548253567,6.76063158,29188.0,29185.0,0.03]
[1609548253766,1.18043158,29188.0,29185.0,0.03]
[1609548253968,0.18043158,29188.0,29185.0,0.03]
[1609548254167,1.18043158,29188.0,29185.0,0.03]
[1609548254566,1.18043158,29188.0,29169.0,1.0]
[1609548254968,1.0,29188.0,29172.0,0.18043158]
[1609548255469,1.0,29188.0,29173.0,0.00035454]
[1609548255972,1.1029,29188.0,29173.0,0.00035454]
[1609548256168,0.61973858,29189.0,29173.0,0.00035454]
[1609548256169,0.62000749,29183.0,29173.0,0.00035454]
[1609548256367,0.73504749,29183.0,29173.0,0.00035454]
[1609548256568,0.00041724,29182.0,29173.0,0.00035454]
[1609548256968,0.18043158,29174.0,29173.0,0.00035454]
[1609548257367,0.34825158,29174.0,29173.0,0.00035454]
[1609548257567,0.34825158,29174.0,29173.0,0.61045454]
[1609548258768,0.34616807,29174.0,29173.0,0.61045454]
[1609548262677,0.34616807,29174.0,29173.0,0.00035454]
[1609548263380,0.34616807,29174.0,29172.0,0.18043158]
[1609548266983,0.34616807,29174.0,29169.0,0.18043158]
[1609548268985,0.18043158,29170.0,29169.0,0.18043158]
[1609548269485,0.18043158,29170.0,29169.0,0.18078617]
[1609548274091,0.16782,29174.0,29169.0,0.18078617]
[1609548274593,0.62186557,29179.0,29170.0,0.00035607]
[1609548274992,0.62186557,29179.0,29176.0,0.18043158]
[1609548275193,1.62186557,29179.0,29176.0,0.18043158]
[1609548276995,0.18043158,29177.0,29176.0,0.18043158]
[1609548277393,0.34388158,29177.0,29176.0,0.18043158]
[1609548278393,0.34388158,29177.0,29176.0,0.18078762]
[1609548279293,0.34388158,29177.0,29176.0,0.18043158]
[1609548281900,0.34429883,29177.0,29176.0,0.18078765]
[1609548283202,0.34429883,29177.0,29176.0,0.18043158]
[1609548283401,0.34429883,29177.0,29176.0,0.18078766]
[1609548284705,0.34429883,29177.0,29176.0,0.00035608]
[1609548285304,0.34429883,29177.0,29170.0,0.18043158]
[1609548285504,0.34429883,29177.0,29176.0,0.00035606]
[1609548285804,0.34388158,29177.0,29171.0,0.00035606]
[1609548286003,0.34429883,29177.0,29176.0,0.00035606]
[1609548286304,0.34429883,29177.0,29171.0,0.00035606]
[1609548286504,0.34429883,29177.0,29176.0,0.00035606]
[1609548286903,0.34429883,29177.0,29171.0,0.00035606]
[1609548287104,0.16386725,29177.0,29176.0,0.00035606]
[1609548287503,0.16345,29177.0,29173.0,0.18043158]
[1609548287703,0.16386725,29177.0,29176.0,0.00035606]
[1609548287903,0.15345,29177.0,29174.0,0.00035606]
[1609548288104,0.00041725,29177.0,29176.0,0.00035606]
[1609548288504,0.62148579,29180.0,29168.0,4.1183]
[1609548288505,0.00041725,29179.0,29174.0,0.00035606]
[1609548288705,0.00041725,29177.0,29176.0,0.00035606]
[1609548288904,0.00041725,29178.0,29175.0,0.00035606]
[1609548289105,0.18043158,29176.0,29175.0,0.00035606]
[1609548289304,0.32048158,29176.0,29169.0,0.00035606]
[1609548289504,0.32089883,29176.0,29175.0,0.00035606]
[1609548289808,0.32048158,29176.0,29170.0,0.00035608]
[1609548290005,0.32089885,29176.0,29175.0,0.00035608]
[1609548290205,0.00041727,29175.0,29171.0,0.00035608]
[1609548290605,0.00041727,29175.0,29169.0,0.00035608]
[1609548290806,0.00041727,29175.0,29172.0,0.00035608]
[1609548291005,0.00041727,29175.0,29170.0,0.00035608]
[1609548291206,0.18043158,29171.0,29170.0,0.00035608]
[1609548291406,0.18043158,29171.0,29169.0,0.00035608]
[1609548291605,0.14005,29176.0,29170.0,0.00035608]
[1609548292106,0.00041725,29175.0,29169.0,0.03439892]
[1609548292506,0.00041725,29175.0,29171.0,0.00035608]
[1609548292706,0.00041725,29175.0,29170.0,0.00035608]
[1609548292905,0.00041725,29175.0,29169.0,0.03404284]
[1609548292906,0.00041725,29175.0,29172.0,0.00035608]
[1609548293106,0.00041725,29175.0,29173.0,0.18043158]
[1609548293405,0.00041725,29175.0,29174.0,0.00035608]
[1609548294808,0.00041723,29175.0,29174.0,0.00035608]
[1609548295306,0.18084881,29175.0,29174.0,0.00035608]
[1609548298213,0.00041723,29175.0,29174.0,0.00035608]
[1609548298412,0.14005,29176.0,29174.0,5.04045608]
[1609548298613,0.62146055,29181.0,29175.0,1.0]
[1609548299012,0.62146055,29181.0,29176.0,0.00035599]
[1609548299212,0.62146055,29181.0,29180.0,1.18043158]
[1609548299812,0.62146055,29181.0,29180.0,2.18078749]
[1609548301114,0.62146055,29181.0,29180.0,1.18078749]
[1609548302618,0.62146055,29181.0,29180.0,6.48308749]
[1609548306824,0.62146055,29181.0,29180.0,7.48308749]
[1609548307224,0.62146055,29181.0,29180.0,6.48308749]
[1609548308725,0.11504,29183.0,29180.0,6.48308749]
[1609548308924,0.12273,29192.0,29180.0,6.48308749]
[1609548309124,0.80156465,29199.0,29182.0,1.0]
[1609548309325,0.80156465,29199.0,29198.0,0.18043158]
[1609548310732,0.18043158,29199.0,29198.0,0.18043158]
[1609548315336,0.18043158,29199.0,29198.0,5.55603158]
[1609548315737,0.31111158,29199.0,29198.0,5.55603158]
[1609548319543,0.31111158,29199.0,29198.0,0.18043158]
[1609548323348,0.31111158,29199.0,29198.0,0.94403158]
[1609548323548,0.31111158,29199.0,29198.0,0.18043158]
[1609548323750,5.95231158,29199.0,29192.0,1.0]
[1609548324550,0.10251695,29198.0,29192.0,1.0]
[1609548324749,0.00041695,29198.0,29192.0,1.0]
[1609548324952,0.00041699,29197.0,29192.0,1.0]
[1609548325152,1.0,29193.0,29182.0,4.7042]
[1609548325352,1.0,29193.0,29189.0,0.18043158]
[1609548325752,0.00041698,29192.0,29189.0,0.18043158]
[1609548325952,0.13414698,29192.0,29189.0,0.18043158]
[1609548326252,0.10414698,29192.0,29189.0,0.18043158]
[1609548327055,0.00041699,29191.0,29189.0,0.18043158]
[1609548327457,0.18043158,29190.0,29189.0,0.18043158]
[1609548327660,0.18084857,29190.0,29189.0,0.18043158]
[1609548327859,0.18043158,29190.0,29189.0,0.18043158]
[1609548328459,0.18084857,29190.0,29189.0,0.18043158]
[1609548329159,0.18084857,29190.0,29189.0,0.21078744]
[1609548329561,0.18084857,29190.0,29189.0,0.21043158]
[1609548329960,0.18084857,29190.0,29189.0,0.21078744]
[1609548331962,0.18084857,29190.0,29189.0,0.21043158]
[1609548337071,1.18084857,29190.0,29189.0,0.21043158]
[1609548338375,1.18043158,29190.0,29189.0,0.21043158]
[1609548341477,1.18043158,29190.0,29189.0,0.03]
[1609548342479,5.16013158,29190.0,29189.0,0.03]
[1609548342679,5.16054861,29190.0,29189.0,0.03]
[1609548345181,4.16054861,29190.0,29189.0,0.03]
[1609548347188,0.18084861,29190.0,29189.0,0.03]
[1609548350292,0.18084861,29190.0,29189.0,5.4484]
[1609548350892,0.18043158,29190.0,29189.0,5.44875505]
[1609548351795,0.18043158,29190.0,29189.0,0.03035505]
[1609548352994,0.1808486,29190.0,29189.0,0.03035505]
[1609548357101,1.1808486,29190.0,29189.0,0.03035505]
[1609548359202,0.1808486,29190.0,29189.0,0.03035505]
[1609548360005,0.8176486,29190.0,29189.0,0.03035505]
[1609548365116,1.8176486,29190.0,29189.0,0.03035505]
[1609548365316,1.1808486,29190.0,29189.0,0.03035505]
[1609548367221,1.80318593,29190.0,29189.0,5.505e-05]
[1609548367721,1.80318593,29190.0,29181.0,0.00035507]
[1609548367921,5.6117,29184.0,29181.0,0.00035507]
[1609548368322,0.0004171,29183.0,29180.0,0.00035507]
[1609548368522,0.0004171,29183.0,29182.0,0.00035509]
[1609548368923,0.0004171,29183.0,29181.0,0.00035509]
[1609548369123,0.0004171,29183.0,29179.0,0.18043158]
[1609548369124,1.0004171,29183.0,29182.0,0.00035509]
[1609548369523,1.0004171,29183.0,29180.0,0.00035511]
[1609548369924,0.18043158,29181.0,29180.0,0.00035511]
[1609548370125,4.43523158,29181.0,29176.0,0.00035511]
[1609548370325,4.43564872,29181.0,29180.0,0.00035511]
[1609548370727,4.43564872,29181.0,29176.0,0.00035515]
[1609548370928,4.43564872,29181.0,29175.0,0.21043158]
[1609548370929,4.43564872,29181.0,29180.0,0.00035517]
[1609548371127,4.43523158,29181.0,29177.0,0.00035517]
[1609548371428,4.43523158,29181.0,29175.0,0.21043158]
[1609548371429,0.02093236,29179.0,29176.0,0.00035517]
[1609548371729,0.02093236,29179.0,29175.0,0.21043158]
[1609548371730,0.02093236,29179.0,29178.0,0.00035517]
[1609548371931,0.02093236,29179.0,29177.0,0.00035517]
[1609548372332,0.02093236,29179.0,29176.0,3.9853]
[1609548372333,0.02134957,29179.0,29178.0,0.00035517]
[1609548372532,0.02093236,29179.0,29178.0,0.00035517]
[1609548372733,0.02134958,29179.0,29177.0,0.00035517]